bitfinex/quotes_SOLUSD_20250301
["timestamp","ask_amount","ask_price","bid_price","bid_amount"]
[1740797623096,0.063,148.0,147.95,18.9252]
[1740797623299,0.063,148.0,147.95,5.4072]
[1740797624493,0.063,148.0,147.92,18.9287]
[1740797625597,0.063,148.0,147.92,13.5204]
[1740797629093,17.626,148.03,147.92,13.5204]
[1740797629294,7.36,148.06,147.93,18.64964886]
[1740797629485,7.36,148.06,147.93,246.18107818]
[1740797629680,7.36,148.06,147.93,244.76234886]
[1740797630002,7.36,148.06,147.96,3.44887221]
[1740797631314,12.7632,148.06,147.94,241.8163]
[1740797631797,7.36,148.06,147.94,241.8163]
[1740797631983,7.36,148.06,147.95,22.00939329]
[1740797632178,7.36,148.1,147.98,20.0]
[1740797632393,7.36,148.1,147.96,145.36]
[1740797632589,20.0,148.08,147.96,145.36]
[1740797633877,25.4026,148.08,147.97,18.9227]
[1740797634998,5.4032,148.06,147.97,18.9227]
[1740797635205,18.64964886,148.07,147.97,18.9227]
[1740797635206,24.05254886,148.07,147.97,18.9227]
[1740797635382,12.7624,148.09,147.97,18.9227]
[1740797635901,20.0,148.06,147.97,18.9227]
[1740797636602,20.0,148.06,147.97,13.5162]
[1740797637006,25.4032,148.06,147.97,13.5162]
[1740797637496,25.4032,148.06,147.96,5.4068]
[1740797638618,25.4032,148.06,147.95,5.4072]
[1740797638790,25.4032,148.06,147.95,18.9252]
[1740797642509,20.0,148.06,147.95,18.9252]
[1740797642704,12.7631,148.07,147.95,18.9252]
[1740797643708,27.36,148.06,147.95,45.9613]
[1740797643896,7.36,148.06,147.95,126.9613]
[1740797644806,18.64964886,148.09,147.95,126.9613]
[1740797645004,27.36,148.07,147.95,126.9613]
[1740797645493,20.0,148.04,147.95,18.9252]
[1740797645698,20.0,148.04,147.95,5.4072]
[1740797646118,20.0,148.04,147.94,3.8899]
[1740797646119,22.34,147.71,147.68,0.03]
[1740797646312,22.34,147.71,147.64,93.79128482]
[1740797646313,16.77786781,147.65,147.64,13.72322928]
[1740797646610,2.0,147.69,147.62,30.51528457]
[1740797646912,2.0,147.8,147.62,30.51528457]
[1740797647088,16.1723,147.81,147.63,3.45102822]
[1740797647288,5.4123,147.81,147.66,0.063]
[1740797647493,5.4123,147.81,147.62,12.407218]
[1740797647494,2.0,147.72,147.62,12.407218]
[1740797647696,2.0,147.72,147.63,113.82]
[1740797648012,33.67879245,147.73,147.63,113.82]
[1740797648220,33.69744871,147.7,147.63,113.82]
[1740797648395,33.69744871,147.7,147.63,73.16680573]
[1740797648598,33.69744871,147.7,147.63,76.58394385]
[1740797648792,33.69744871,147.7,147.64,24.06814886]
[1740797648997,33.69744871,147.7,147.66,18.64964886]
[1740797649297,65.0792772,147.69,147.67,3.36205343]
[1740797649691,28.04861862,147.69,147.68,18.64964886]
[1740797649897,7.51380617,147.72,147.68,20.07087989]
[1740797650094,3.93335814,147.72,147.66,1.85695613]
[1740797650309,0.14304387,147.81,147.67,1.85695613]
[1740797650493,0.14304387,147.81,147.67,3.27798612]
[1740797650897,0.14304387,147.81,147.7,3.32946816]
[1740797650898,18.79269273,147.81,147.7,3.32946816]
[1740797651194,2.0,147.78,147.62,138.0]
[1740797651395,2.0,147.78,147.7,3.46252469]
[1740797651996,3.77659427,147.79,147.71,113.92]
[1740797652318,2.0,147.78,147.71,66.77644053]
[1740797652521,4.0,147.78,147.7,3.46252469]
[1740797653121,2.0,147.78,147.69,69.59803926]
[1740797653420,4.0,147.78,147.69,69.59803926]
[1740797653920,2.0,147.77,147.69,69.59803926]
[1740797654099,5.7765981,147.77,147.69,64.18143926]
[1740797654517,4.0,147.75,147.69,64.18143926]
[1740797654696,3.77692419,147.74,147.66,3.37256574]
[1740797655422,2.0,147.74,147.66,3.37256574]
[1740797655807,4.0,147.74,147.66,3.37256574]
[1740797656007,2.0,147.74,147.66,8.79036574]
[1740797656212,4.0,147.77,147.69,20.0]
[1740797656424,4.0,147.78,147.69,20.0]
[1740797656611,2.0,147.76,147.69,20.0]
[1740797656924,2.0,147.74,147.66,8.79036574]
[1740797657121,4.0,147.78,147.69,20.0]
[1740797657329,2.0,147.77,147.69,20.0]
[1740797657725,2.0,147.77,147.67,25.4174]
[1740797658022,5.7767505,147.77,147.67,25.4174]
[1740797658324,3.7767505,147.77,147.67,25.4174]
[1740797658528,2.0,147.75,147.67,25.4174]
[1740797658833,2.0,147.72,147.66,3.37256574]
[1740797659125,5.7773844,147.77,147.65,3.46275969]
[1740797659318,4.0,147.8,147.67,20.0]
[1740797659510,3.77649335,147.79,147.67,20.71071949]
[1740797659821,2.0,147.8,147.71,20.0]
[1740797660115,3.77629755,147.8,147.71,20.0]
[1740797660293,4.6104034,147.88,147.71,23.32086835]
[1740797660294,4.0,147.84,147.71,23.32086835]
[1740797660498,4.0,147.81,147.71,23.32086835]
[1740797661223,2.0,147.81,147.71,23.32086835]
[1740797662028,2.0,147.81,147.75,20.0]
[1740797662317,2.0,147.81,147.72,18.9547]
[1740797662318,2.0,147.83,147.76,23.46871849]
[1740797662618,4.0,147.86,147.76,23.46871849]
[1740797662826,4.0,147.84,147.76,23.46871849]
[1740797663822,4.0,147.84,147.8,20.0]
[1740797665329,4.0,147.84,147.77,20.0]
[1740797665512,4.0,147.84,147.77,25.4138]
[1740797665927,2.0,147.81,147.77,5.4138]
[1740797666128,3.77621572,147.81,147.75,5.4145]
[1740797666508,5.77621572,147.81,147.75,5.4145]
[1740797667112,5.77625571,147.82,147.77,20.0]
[1740797667316,2.0,147.83,147.77,20.0]
[1740797667525,4.0,147.81,147.77,20.0]
[1740797667713,2.0,147.81,147.77,20.0]
[1740797667928,1.77599703,147.83,147.77,20.0]
[1740797668234,2.0,147.82,147.77,20.0]
[1740797668434,5.77610329,147.81,147.77,20.0]
[1740797668653,3.77610329,147.81,147.77,20.0]
[1740797668824,2.0,147.79,147.77,20.0]
[1740797669018,4.0,147.79,147.71,13.5396]
[1740797669216,5.77654067,147.78,147.71,13.5396]
[1740797669535,4.0,147.77,147.71,13.5396]
[1740797669937,2.0,147.76,147.71,13.5396]
[1740797670332,2.0,147.77,147.71,13.5396]
[1740797670513,3.77667587,147.77,147.71,13.5396]
[1740797670910,3.77665043,147.78,147.71,13.5396]
[1740797671323,5.77665043,147.78,147.71,13.5396]
[1740797671811,4.0,147.73,147.69,5.4465]
[1740797672010,1.77731796,147.72,147.69,5.4465]
[1740797672231,4.0,147.73,147.69,5.4465]
[1740797673234,2.0,147.7,147.69,0.03]
[1740797673532,24.42712935,147.7,147.69,0.03]
[1740797673735,2.0,147.64,147.61,5.4196]
[1740797673922,2.0,147.68,147.61,18.9688]
[1740797674119,5.77774746,147.68,147.61,18.9688]
[1740797674322,4.0,147.67,147.61,18.9688]
[1740797675107,3.77791263,147.66,147.61,5.4196]
[1740797675308,2.0,147.67,147.61,13.5492]
[1740797675529,3.77787665,147.67,147.61,13.5492]
[1740797675728,3.77786596,147.68,147.61,13.5492]
[1740797675930,3.77774354,147.69,147.64,20.0]
[1740797676236,2.0,147.69,147.64,20.0]
[1740797676429,4.0,147.69,147.64,20.0]
[1740797676608,2.0,147.69,147.64,20.0]
[1740797677021,20.4273924,147.74,147.64,20.0]
[1740797677022,2.0,147.67,147.64,20.0]
[1740797677209,2.0,147.66,147.61,13.5492]
[1740797677415,4.0,147.65,147.61,13.5492]
[1740797679040,2.0,147.65,147.61,13.5492]
[1740797680044,4.0,147.66,147.61,13.5492]
[1740797680342,4.0,147.65,147.61,13.5492]
[1740797680520,2.0,147.65,147.61,13.5492]
[1740797680918,4.0,147.65,147.61,13.5492]
[1740797681144,2.0,147.65,147.61,13.5492]
[1740797681644,4.0,147.66,147.61,13.5492]
[1740797681826,2.0,147.65,147.61,13.5492]
[1740797682146,4.0,147.65,147.61,13.5492]
[1740797682347,2.0,147.63,147.59,5.4204]
[1740797682535,2.0,147.63,147.59,18.9714]
[1740797682947,4.0,147.64,147.59,18.9714]
[1740797683257,4.0,147.64,147.59,20.0]
[1740797683541,6.8597355,147.63,147.61,0.03]
[1740797683743,4.8597355,147.63,147.61,0.03]
[1740797684051,1.69851309,147.62,147.61,0.03]
[1740797684820,6.55824859,147.62,147.61,0.03]
[1740797685341,4.859e-05,147.62,147.61,0.03]
[1740797686837,2.0,147.65,147.61,0.03]
[1740797687539,2.0,147.67,147.61,0.03]
[1740797687846,5.77786738,147.68,147.61,0.03]
[1740797688017,2.0,147.65,147.61,0.03]
[1740797688641,7.81003745,147.66,147.61,0.03]
[1740797689038,9.81003745,147.66,147.61,0.03]
[1740797689227,2.0,147.65,147.61,0.03]
[1740797690654,2.71713258,147.64,147.61,0.03]
[1740797691543,3.92949046,147.63,147.62,20.0]
[1740797691846,3.92949046,147.63,147.62,25.4193]
[1740797692044,2.71722304,147.63,147.62,25.4193]
[1740797692738,2.304e-05,147.63,147.62,25.4193]
[1740797693328,2.00002304,147.63,147.62,5.4193]
[1740797693547,2.304e-05,147.63,147.62,5.4193]
[1740797693849,2.0,147.65,147.62,18.9675]
[1740797694043,2.0,147.66,147.62,18.9675]
[1740797694251,2.0,147.67,147.62,18.9675]
[1740797695249,2.0,147.69,147.62,18.9675]
[1740797695250,2.0,147.68,147.62,46.064]
[1740797696245,2.0,147.67,147.62,46.064]
[1740797696633,2.0,147.69,147.62,46.064]
[1740797696840,9.38,147.72,147.65,20.0]
[1740797696841,2.0,147.72,147.65,20.0]
[1740797697150,2.0,147.7,147.65,20.0]
[1740797697352,4.813e-05,147.68,147.65,20.0]
[1740797698750,2.0,147.71,147.65,20.0]
[1740797698933,2.0,147.72,147.66,46.0516]
[1740797699136,4.0,147.72,147.66,46.0516]
[1740797699329,2.0,147.71,147.66,46.0516]
[1740797699530,4.0,147.71,147.66,46.0516]
[1740797699735,2.0,147.7,147.66,46.0516]
[1740797699936,8.91398426,147.71,147.66,46.0516]
[1740797700138,2.0,147.7,147.66,46.0516]
[1740797700356,4.0,147.7,147.66,46.0516]
[1740797700959,6.91398426,147.71,147.66,46.0516]
[1740797701256,8.426e-05,147.69,147.66,46.0516]
[1740797702334,2.0,147.71,147.66,46.0516]
[1740797702540,2.0,147.7,147.66,46.0516]
[1740797702854,2.0,147.69,147.66,18.9624]
[1740797703041,4.0,147.69,147.66,18.9624]
[1740797704035,2.0,147.71,147.66,18.9624]
[1740797704249,4.0,147.72,147.66,46.0516]
[1740797704735,2.0,147.71,147.66,46.0516]
[1740797704929,4.0,147.72,147.66,46.0516]
[1740797705148,2.0,147.72,147.66,46.0516]
[1740797705350,4.0,147.72,147.66,46.0516]
[1740797707033,2.0,147.69,147.66,46.0516]
[1740797707233,4.0,147.67,147.66,5.4178]
[1740797707451,2.0,147.64,147.63,13.5467]
[1740797707737,2.0,147.64,147.63,5.4189]
[1740797708355,9.08,147.69,147.63,5.4189]
[1740797708562,11.08,147.69,147.63,18.9662]
[1740797708935,2.0,147.67,147.63,18.9662]
[1740797709149,2.0,147.66,147.63,13.5473]
[1740797709843,2.0,147.65,147.63,13.5473]
[1740797710048,4.0,147.65,147.61,5.4496]
[1740797710545,2.0,147.65,147.61,5.4496]
[1740797710874,2.0,147.65,147.61,18.9988]
[1740797711771,2.0,147.65,147.61,0.03]
[1740797712449,4.0,147.65,147.61,0.03]
[1740797712852,2.0,147.62,147.61,0.03]
[1740797713248,4.0,147.62,147.61,0.03]
[1740797713965,2.0,147.62,147.61,0.03]
[1740797714270,1.69819779,147.62,147.61,0.03]
[1740797714462,5.64560564,147.62,147.61,0.03]
[1740797715150,9.64560564,147.62,147.61,0.03]
[1740797715750,7.64560564,147.62,147.61,0.03]
[1740797716164,10.58466059,147.62,147.61,0.03]
[1740797717170,6.63725274,147.62,147.61,0.03]
[1740797717979,10.63725274,147.62,147.61,0.03]
[1740797720378,14.59284817,147.62,147.61,0.03]
[1740797721205,35.02140788,147.62,147.61,0.03]
[1740797721357,16.37175902,147.62,147.61,0.03]
[1740797722563,35.02140788,147.62,147.61,0.03]
[1740797723169,16.37175902,147.62,147.61,0.03]
[1740797726793,35.02140788,147.62,147.61,0.03]
[1740797727085,40.44070788,147.62,147.61,0.03]
[1740797727592,40.44070788,147.62,147.54,0.03]
[1740797727893,4.0,147.55,147.54,0.03]
[1740797728288,2.0,147.55,147.54,0.03]
[1740797730787,2.0,147.56,147.54,0.03]
[1740797730979,2.0,147.58,147.54,0.03]
[1740797731192,2.0,147.56,147.54,0.03]
[1740797731691,2.0,147.56,147.51,11.7105]
[1740797732190,2.0,147.56,147.53,0.03]
[1740797732594,4.0,147.56,147.53,0.03]
[1740797732771,2.0,147.56,147.53,0.03]
[1740797733277,6.90863639,147.57,147.53,0.03]
[1740797733490,2.0,147.56,147.53,0.03]
[1740797733869,2.0,147.57,147.53,0.03]
[1740797734366,2.0,147.56,147.53,0.03]
[1740797734768,4.0,147.56,147.53,0.03]
[1740797735073,2.0,147.55,147.53,0.03]
[1740797735594,2.0,147.54,147.53,0.03]
[1740797736092,4.0,147.55,147.53,0.03]
[1740797736697,2.0,147.54,147.53,0.03]
[1740797737097,4.0,147.54,147.53,0.03]
[1740797738801,2.0,147.55,147.53,0.03]
[1740797738977,2.0,147.57,147.53,0.03]
[1740797739302,2.0,147.55,147.53,0.03]
[1740797739492,4.0,147.55,147.53,0.03]
[1740797739801,2.0,147.55,147.53,0.03]
[1740797739970,4.0,147.55,147.53,0.03]
[1740797740699,2.0,147.55,147.53,0.03]
[1740797740877,2.0,147.57,147.53,0.03]
[1740797741078,2.0,147.56,147.53,0.03]
[1740797744498,2.063,147.56,147.53,0.03]
[1740797745301,2.0,147.58,147.55,5.4218]
[1740797745485,2.0,147.57,147.55,18.9765]
[1740797746301,4.0,147.57,147.55,18.9765]
[1740797746476,2.0,147.57,147.55,18.9765]
[1740797746683,4.0,147.56,147.55,5.4218]
[1740797747300,4.0,147.56,147.53,0.03]
[1740797747703,2.0,147.55,147.53,0.03]
[1740797747892,4.0,147.58,147.53,0.03]
[1740797748201,2.0,147.55,147.53,0.03]
[1740797748388,8.24,147.63,147.53,20.03]
[1740797748389,2.0,147.58,147.53,20.03]
[1740797748715,2.0,147.56,147.53,20.03]
[1740797749390,4.0,147.58,147.54,5.4222]
[1740797749595,2.0,147.57,147.54,5.4222]
[1740797750106,4.0,147.58,147.54,5.4222]
[1740797750305,2.0,147.57,147.54,18.9778]
[1740797750680,2.0,147.56,147.54,18.9778]
[1740797750885,2.0,147.57,147.54,18.9778]
[1740797751106,2.0,147.56,147.54,18.9778]
[1740797751308,2.0,147.57,147.54,18.9778]
[1740797751509,2.0,147.56,147.53,0.03]
[1740797754715,2.0,147.55,147.53,0.03]
[1740797755416,2.0,147.54,147.53,0.03]
[1740797755623,4.0,147.54,147.53,0.03]
[1740797756509,8.91045097,147.54,147.53,0.03]
[1740797756822,10.60991987,147.54,147.53,0.03]
[1740797758123,6.60991987,147.54,147.53,0.03]
[1740797759119,1.987e-05,147.54,147.53,0.03]
[1740797760098,1.987e-05,147.56,147.53,0.03]
[1740797761396,2.00001987,147.56,147.53,0.03]
[1740797761610,4.0,147.54,147.53,0.03]
[1740797762203,2.0,147.54,147.53,0.03]
[1740797763921,2.0,147.55,147.53,0.03]
[1740797764308,1.987e-05,147.56,147.53,0.03]
[1740797765718,2.00001987,147.56,147.53,0.03]
[1740797766094,2.00001987,147.56,147.53,5.4526]
[1740797766523,2.00001987,147.56,147.53,19.0091]
[1740797767021,2.0,147.54,147.53,0.03]
[1740797767223,4.0,147.54,147.53,0.03]
[1740797767395,16.475,147.54,147.53,0.03]
[1740797768737,8.0351,147.54,147.53,0.03]
[1740797770727,2.0,147.54,147.53,0.03]
[1740797770929,2.0,147.55,147.53,0.03]
[1740797771727,2.0,147.54,147.53,0.03]
[1740797772407,6.90918976,147.54,147.53,0.03]
[1740797772803,8.60879685,147.54,147.53,0.03]
[1740797773316,6.60879685,147.54,147.53,0.03]
[1740797774529,1.987e-05,147.56,147.53,0.03]
[1740797778936,2.0,147.54,147.53,5.4526]
[1740797779225,2.0,147.54,147.53,0.03]
[1740797781326,4.0,147.54,147.53,0.03]
[1740797782934,4.0,147.55,147.53,0.03]
[1740797783135,2.0,147.55,147.53,0.03]
[1740797783906,1.987e-05,147.56,147.53,0.03]
[1740797784607,2.00001987,147.56,147.53,0.03]
[1740797784809,4.0,147.55,147.53,0.03]
[1740797785927,2.0,147.55,147.53,0.03]
[1740797786522,2.0,147.54,147.53,0.03]
[1740797786717,4.9142197,147.54,147.53,0.03]
[1740797787608,9.309e-05,147.54,147.53,0.03]
[1740797789932,4.00009309,147.54,147.53,0.03]
[1740797790111,2.00009309,147.54,147.53,0.03]
[1740797790512,4.00009309,147.54,147.53,0.03]
[1740797791009,2.00009309,147.54,147.53,0.03]
[1740797791741,9.309e-05,147.54,147.53,0.03]
[1740797791922,2.00009309,147.54,147.53,0.03]
[1740797792128,9.309e-05,147.54,147.53,0.03]
[1740797793047,2.00009309,147.54,147.53,0.03]
[1740797793229,9.309e-05,147.54,147.53,0.03]
[1740797793428,2.00009309,147.54,147.53,0.03]
[1740797794021,9.309e-05,147.54,147.53,0.03]
[1740797794526,4.00009309,147.54,147.53,0.03]
[1740797795426,5.77973718,147.54,147.53,0.03]
[1740797800255,4.00009309,147.54,147.53,0.03]
[1740797802428,9.309e-05,147.54,147.53,0.03]
[1740797803152,0.06309309,147.54,147.53,0.03]
[1740797803653,2.06309309,147.54,147.53,0.03]
[1740797804352,0.06309309,147.54,147.53,0.03]
[1740797806226,0.063,147.54,147.53,0.03]
[1740797806555,1.987e-05,147.56,147.53,0.03]
[1740797806946,2.00001987,147.56,147.53,0.03]
[1740797807654,1.987e-05,147.56,147.53,0.03]
[1740797807959,2.00001987,147.56,147.53,0.03]
[1740797811952,1.69931661,147.55,147.53,0.03]
[1740797812155,2.0,147.54,147.53,0.03]
[1740797812651,1.69931661,147.55,147.53,0.03]
[1740797812957,1.69931661,147.55,147.53,20.03]
[1740797813539,1.987e-05,147.56,147.53,20.03]
[1740797813859,1.987e-05,147.56,147.53,0.03]
[1740797814059,2.00001987,147.56,147.53,0.03]
[1740797814261,2.0,147.55,147.53,0.03]
[1740797815253,1.987e-05,147.56,147.53,0.03]
[1740797815461,2.0,147.55,147.53,0.03]
[1740797815763,3.69946639,147.55,147.53,0.03]
[1740797816955,1.69946639,147.54,147.53,0.03]
[1740797820859,5.69946639,147.54,147.53,0.03]
[1740797821738,5.19946639,147.54,147.53,0.03]
[1740797824066,3.19946639,147.54,147.53,0.03]
[1740797824641,1.19946639,147.54,147.53,0.03]
[1740797825741,1.987e-05,147.56,147.54,20.0]
[1740797825951,4.0,147.55,147.53,0.03]
[1740797826755,2.0,147.55,147.53,0.03]
[1740797826958,2.00001987,147.56,147.53,0.03]
[1740797827449,1.987e-05,147.56,147.53,0.03]
[1740797827973,0.063,147.55,147.53,0.03]
[1740797829151,0.063,147.55,147.53,20.03]
[1740797829872,0.063,147.55,147.54,25.4222]
[1740797831176,2.0,147.54,147.53,0.03]
[1740797831479,4.0,147.54,147.53,0.03]
[1740797834779,2.0,147.58,147.55,20.0]
[1740797835081,4.0,147.57,147.55,20.0]
[1740797835277,2.0,147.56,147.55,20.0]
[1740797836487,4.0,147.56,147.55,5.4218]
[1740797838391,5.69937953,147.56,147.53,0.03]
[1740797838588,2.0,147.55,147.54,20.0]
[1740797839590,5.69937953,147.56,147.54,25.4222]
[1740797839991,1.69937953,147.55,147.54,25.4222]
[1740797840487,3.69937953,147.55,147.54,25.4222]
[1740797840681,2.0,147.54,147.53,0.03]
[1740797840887,4.0,147.54,147.53,0.03]
[1740797841685,2.0,147.54,147.53,0.03]
[1740797841999,1.69937953,147.55,147.53,0.03]
[1740797842586,2.0,147.56,147.53,0.03]
[1740797842967,4.0,147.56,147.53,0.03]
[1740797843800,4.0,147.56,147.55,20.0]
[1740797844477,5.69929911,147.56,147.55,20.0]
[1740797845505,5.69929911,147.56,147.55,25.4218]
[1740797845679,4.0,147.55,147.54,5.4219]
[1740797846074,4.0,147.55,147.54,25.4219]
[1740797847292,5.69929911,147.55,147.54,25.4219]
[1740797847503,1.69929911,147.55,147.54,25.4219]
[1740797849996,3.69929911,147.55,147.54,25.4219]
[1740797851498,1.69929911,147.55,147.54,25.4219]
[1740797851700,3.69929911,147.55,147.54,25.4219]
[1740797852198,1.69929911,147.55,147.54,25.4219]
[1740797852601,1.69929911,147.55,147.54,5.4219]
[1740797853302,9.911e-05,147.55,147.54,5.4219]
[1740797853898,9.911e-05,147.56,147.54,5.4219]
[1740797854303,9.911e-05,147.56,147.55,20.0]
[1740797856393,9.911e-05,147.56,147.55,25.4218]
[1740797859919,9.911e-05,147.56,147.55,44.07144886]
[1740797864491,2.0,147.65,147.59,20.0]
[1740797864700,2.0,147.63,147.59,20.0]
[1740797865808,2.0,147.57,147.53,0.03]
[1740797866009,2.0,147.57,147.54,5.4222]
[1740797866396,2.0,147.58,147.54,5.4222]
[1740797867005,2.0,147.59,147.54,18.9778]
[1740797867204,2.0,147.58,147.54,18.9778]
[1740797867721,2.0,147.58,147.54,13.5556]
[1740797868715,2.0,147.59,147.54,13.5556]
[1740797868917,7.48,147.63,147.54,13.5556]
[1740797868918,2.0,147.6,147.54,13.5556]
[1740797869299,2.0,147.61,147.54,13.5556]
[1740797869500,1.69896698,147.59,147.54,13.5556]
[1740797869702,1.69896698,147.59,147.57,20.0]
[1740797870811,2.0,147.61,147.57,20.0]
[1740797871212,2.0,147.6,147.57,20.0]
[1740797872021,2.0,147.6,147.58,5.4207]
[1740797873502,2.0,147.61,147.58,5.4207]
[1740797873704,0.03,147.6,147.58,5.4207]
[1740797874221,2.0,147.64,147.58,18.9726]
[1740797874421,2.0,147.65,147.61,20.0]
[1740797874817,0.063,147.69,147.65,20.0]
[1740797875331,2.063,147.69,147.65,20.0]
[1740797876133,2.063,147.69,147.65,13.5454]
[1740797876313,2.0,147.67,147.62,3.41020628]
[1740797876516,2.0,147.65,147.63,25.4189]
[1740797876911,2.0,147.66,147.63,25.4189]
[1740797877237,2.0,147.65,147.63,25.4189]
[1740797877438,2.0,147.66,147.63,25.4189]
[1740797877625,2.0,147.65,147.63,25.4189]
[1740797878645,2.0,147.66,147.63,38.9662]
[1740797878934,2.0,147.67,147.63,38.9662]
[1740797879137,2.0,147.68,147.63,38.9662]
[1740797879517,0.063,147.69,147.63,40.38810744]
[1740797880536,0.063,147.69,147.66,20.0]
[1740797880710,0.063,147.69,147.67,5.4174]
[1740797880910,2.063,147.69,147.67,5.4174]
[1740797881211,0.063,147.69,147.67,5.4174]
[1740797881737,2.063,147.69,147.67,5.4174]
[1740797881946,0.063,147.69,147.67,5.4174]
[1740797882318,2.063,147.69,147.67,5.4174]
[1740797882615,1.563,147.69,147.67,5.4174]
[1740797882939,1.563,147.69,147.67,18.9611]
[1740797885945,1.593,147.69,147.67,18.9611]
[1740797886246,1.563,147.67,147.66,0.063]
[1740797886913,2.62608707,147.67,147.66,0.063]
[1740797887145,1.563,147.67,147.66,0.063]
[1740797888017,14.06618707,147.67,147.58,5.4207]
[1740797888217,16.06618707,147.67,147.56,27.106]
[1740797888727,14.06618707,147.67,147.56,27.106]
[1740797889316,14.06618707,147.67,147.59,20.0]
[1740797889617,1.69860389,147.66,147.59,20.0]
[1740797890244,1.69860389,147.66,147.6,46.0703]
[1740797891016,14.06618707,147.67,147.6,46.0703]
[1740797893026,4.2862,147.67,147.6,46.0703]
[1740797893420,0.03,147.69,147.6,73.1705]
[1740797894136,0.03,147.69,147.6,76.48241421]
[1740797895549,0.03,147.69,147.6,73.1705]
[1740797895750,0.03,147.69,147.6,18.9701]
[1740797896534,1.69832912,147.68,147.6,18.9701]
[1740797897720,1.69832912,147.67,147.6,46.0703]
[1740797898026,1.69832912,147.67,147.63,20.0]
[1740797898435,1.69832912,147.67,147.64,18.9649]
[1740797899218,1.69832912,147.67,147.64,5.4185]
[1740797899426,1.06308707,147.66,147.64,5.4185]
[1740797899643,18.64964886,147.68,147.61,13.5483]
[1740797899846,1.06308707,147.67,147.62,5.4193]
[1740797900225,1.09308707,147.69,147.62,18.9675]
[1740797900425,1.09308707,147.69,147.58,46.0765]
[1740797902451,1.69848874,147.68,147.58,46.0765]
[1740797902623,1.06308707,147.67,147.58,46.0765]
[1740797903445,1.06308707,147.67,147.58,18.9726]
[1740797903640,5.97478874,147.66,147.58,5.4207]
[1740797903819,8.52308707,147.65,147.58,5.4207]
[1740797904532,8.52308707,147.65,147.55,18.9756]
[1740797905040,1.69848874,147.64,147.55,18.9756]
[1740797905232,1.06308707,147.63,147.55,18.9756]
[1740797906261,1.69848874,147.62,147.55,18.9756]
[1740797906820,1.69848874,147.62,147.58,20.0]
[1740797907026,1.69848874,147.62,147.59,20.0]
[1740797907450,1.69848874,147.65,147.59,20.0]
[1740797907951,4.2763,147.66,147.59,20.0]
[1740797908537,1.69847789,147.65,147.59,20.0]
[1740797908739,1.69847789,147.65,147.6,18.9701]
[1740797909247,1.69847789,147.65,147.63,20.0]
[1740797909764,8.52308707,147.68,147.63,20.0]
[1740797910056,7.46,147.68,147.63,20.0]
[1740797910227,4.0406,147.69,147.63,20.0]
[1740797910840,0.03,147.69,147.64,38.9649]
[1740797911142,1.69816157,147.68,147.64,38.9649]
[1740797911862,8.6307,147.71,147.67,20.0]
[1740797911863,0.063,147.71,147.67,20.0]